Cogmind - Beta 13 @@@ ROGUE MODE // 2024.06.06 @ 16:52:11 Player: Kat Result: Self-destructed Performance ------------- Evolutions (1) 500 Regions Visited (3) 600 Robots Destroyed (49) 245 Value Destroyed (1113) 1113 Prototype IDs (0) 0 Alien Tech Used (0) 0 Bonus (0) 0 TOTAL SCORE: 2458 Bonus ------- None Cogmind --------- Core Integrity 154/400 Matter 280/300 Energy 100/100 System Corruption 2% Temperature Cool (6) Movement Core (400) Ox7 Location -9/Materials Parts ------- > --- POWER (1) -------- (None) > --- PROPULSION (2) --- (None) > --- UTILITY (4) ------ Large Storage Unit > --- WEAPON (2) ------- Heavy Flail > --- INVENTORY (15) --- Deuterium Engine Light Treads Heat Sink High-capacity Storage Unit Improved Terrain Scanner Light Armor Plating Hacking Suite Assault Rifle Light Cannon Plasma Cutter Heavy Flail Heavy Flail Peak State ------------ > --- POWER ------------ Light Nuclear Core > --- PROPULSION ------- Light Treads Light Treads > --- UTILITY ---------- Large Storage Unit Light Armor Plating Light Armor Plating Tractor Beam > --- WEAPON ----------- Rocket Launcher Heavy Flail > --- INVENTORY -------- Ion Engine Light Treads Heat Sink High-capacity Storage Unit Improved Terrain Scanner Light Armor Plating Light Armor Plating Light Armor Plating Hacking Suite Assault Rifle Light Cannon Grenade Launcher Grenade Launcher Plasma Cutter Mace [Rating: 16] Favorites ----------- Power Light Nuclear Core Engine Deuterium Engine Power Core Light Nuclear Core Propulsion Light Treads Treads Light Treads Leg Aluminum Leg Utility Tractor Beam Device Tractor Beam Storage Large Storage Unit Protection Light Armor Plating Weapon Mace Ballistic Gun Assault Rifle Launcher Grenade Launcher Impact Weapon Mace Build | -11 -10 -10 -9 ------- Run | Yrd Mat Min Mat Slots Evolved 2 | . . . 2 Power . | . . . . Propulsion . | . . . . Utility 2 | . . . 2 Weapon . | . . . . Parts Attached 30 | 8 10 1 11 Power 5 | 1 2 . 2 Engine 3 | 1 . . 2 Core 2 | . 2 . . Reactor . | . . . . Propulsion 5 | 2 2 . 1 Treads 3 | . 2 . 1 Leg 2 | 2 . . . Wheel . | . . . . Hover . | . . . . Flight . | . . . . Utility 11 | 3 3 . 5 Device 3 | 2 1 . . Storage 3 | 1 2 . . Processor . | . . . . Hackware . | . . . . Protection 5 | . . . 5 Artifact . | . . . . Weapon 9 | 2 3 1 3 Energy Gun . | . . . . Energy Cannon . | . . . . Ballistic Gun 2 | 2 . . . Ballistic Cannon . | . . . . Launcher 5 | . 2 1 2 Special Weapon . | . . . . Impact Weapon 2 | . 1 . 1 Slashing Weapon . | . . . . Piercing Weapon . | . . . . Special Melee Weapon . | . . . . Unidentified Prototypes . | . . . . Parts Lost 10 | . 1 . 9 Power 1 | . . . 1 Propulsion 2 | . . . 2 Utility 4 | . 1 . 3 Weapon 3 | . . . 3 Highest Loss Streak 7 | . 1 . 7 To Critical Strikes . | . . . . Average Slot Usage (%) 96 | . 97 100 95 Engine 4 | . 1 . 9 Core 8 | . 12 14 1 Treads 23 | . 23 28 21 Leg 2 | . 4 . . Device 10 | . 11 14 8 Storage 12 | . 14 14 11 Protection 8 | . . . 21 Ballistic Gun 1 | . 2 . . Launcher 12 | . 12 14 10 Impact Weapon 12 | . 12 14 11 Naked Turns . | . . . . Heaviest Build 51 | 13 51 32 43 Greatest Support 40 | 20 40 40 40 Greatest Overweight (x) 8 | 1 1 . 8 Average Overweight (x) . | . . . . Largest Inventory Capacity 20 | 8 20 15 15 Average Capacity 15 | 7 17 15 15 Most Carried 15 | 5 15 15 15 Average Carried 10 | 3 8 14 14 Final Capacity 15 | 8 15 15 15 Final Carried 15 | 5 15 15 12 Class Distribution -------------------- 100% | Mutant Dominant Class ---------------- Mutant | -10/Materials Mutant | -10/Mines Mutant | -9/Materials Resources | -11 -10 -10 -9 ----------- Run | Yrd Mat Min Mat Matter Collected 847 | 338 279 64 166 Remotely 434 | . 226 64 144 Salvage Created 1331 | 202 377 68 684 Parts 62 | 12 23 2 25 Haulers Intercepted 3 | . 2 . 1 Recyclers Shooed 4 | . 3 . 1 Parts Field Recycled . | . . . . Retrieved Matter . | . . . . Parts Self-Destructed . | . . . . Prevented . | . . . . Kills | -11 -10 -10 -9 ------- Run | Yrd Mat Min Mat Combat Hostiles Destroyed 29 | . 13 2 14 Melee 6 | . . 1 5 Guns 1 | . 1 . . Cannons 1 | . . . 1 AOE 13 | . 9 . 4 Classes Destroyed 10 | 2 5 . 3 Worker 1 | . 1 . . Tunneler 8 | 6 1 . 1 Hauler 3 | . 2 . 1 Recycler 2 | 1 . . 1 Operator 2 | . . . 2 Watcher 4 | . 2 . 2 Swarmer 8 | . 6 . 2 Grunt 17 | . 7 2 8 Duelist 1 | . . . 1 Sentry 3 | . . . 3 Best Kill Streak 8 | 3 8 2 5 Combat Bots Only 8 | . 8 2 5 Max Kills in Single Turn 3 | 1 3 1 2 Gunslinging . | . . . . Exploded 3 | . 3 . 2 Melee 1 | . . 1 1 Uniques/NPCs Destroyed . | . . . . Combat | -11 -10 -10 -9 -------- Run | Yrd Mat Min Mat Hostile Shots Fired 171 | . 34 17 120 Missed 37 | . 11 1 25 Damage Taken 1744 | . 278 193 1273 Core 368 | . 57 65 246 Absorbed by Shields . | . . . . Regen/Repaired (Parts) 18 | . 18 . . Core Remaining (%) 75 | 100 . 51 . Volleys Fired 49 | 16 24 . 9 Largest 2 | 2 2 . 1 Hottest 50 | 40 50 . 33 Shots Fired 82 | 32 41 . 9 Gun 60 | 32 28 . . Cannon . | . . . . Launcher 22 | . 13 . 9 Special . | . . . . Kinetic 60 | 32 28 . . Thermal . | . . . . Explosive 22 | . 13 . 9 Electromagnetic . | . . . . Robot Hit Streak 7 | 7 5 . 6 Robot Miss Streak 4 | 4 2 . 1 Penetration Max . | . . . . Secondary Targets . | . . . . Shots Hit Robots 96 | 18 34 7 37 Core Hits 47 | 8 25 1 13 Critical Kills 2 | . . . 2 Critical Parts Destroyed 12 | . 5 1 6 Critical Strikes 15 | . 5 1 9 Destroy 1 | . 1 . . Smash 14 | . 4 1 9 Melee Attacks 68 | . 13 8 47 Impact 68 | . 13 8 47 Slashing . | . . . . Piercing . | . . . . Sneak Attacks 8 | . 4 . 4 Combat Hostiles 1 | . 1 . . Follow-up Attacks . | . . . . Damage Inflicted 3975 | 228 1434 213 2100 Guns 494 | 224 270 . . Cannons . | . . . . Explosions 1282 | . 729 . 553 Melee 2195 | . 435 213 1547 Ramming 4 | 4 . . . Kinetic 494 | 224 270 . . Thermal 84 | . 84 . . Explosive 1198 | . 645 . 553 Electromagnetic . | . . . . Impact 2195 | . 435 213 1547 Slashing . | . . . . Piercing . | . . . . Highest Corruption 2 | . . . 2 Average Corruption 2 | . . . 2 Corruption Purged . | . . . . Corruption Blocked . | . . . . Overload Shots . | . . . . Overflow Damage 687 | . 206 25 456 Projectiles 30 | . . . 30 Explosions 25 | . . . 25 Melee 632 | . 206 25 401 Knockbacks 5 | . 2 1 2 Impact 5 | . 2 1 2 Kinetic . | . . . . Secondary . | . . . . Self-Inflicted Damage 68 | . 8 . 60 Shots 4 | . 1 . 3 Rammed . | . . . . Targets Rammed 1 | 1 . . . Kicked 1 | 1 . . . Crushed . | . . . . Highest Temperature 17 | . 17 . 11 Average Temperature 7 | . 9 . 2 Received Heat Transfer 720 | . 129 111 480 Siege Activations . | . . . . Robots Corrupted . | . . . . Combat Hostiles . | . . . . Parts Fried 16 | . 6 . 10 Impact Corruptions 23 | . 7 1 15 Robots Melted . | . . . . Combat Hostiles . | . . . . Parts Melted . | . . . . Heat Transferred 50 | . 50 . . Parts Sabotaged . | . . . . Parts Stolen . | . . . . Parts Stripped . | . . . . Power Chain Reactions . | . . . . Alert | -11 -10 -10 -9 ------- Run | Yrd Mat Min Mat Peak Influence 387 | 35 387 98 299 Initial 48 | . 22 48 37 Average 166 | 17 206 89 162 Maximum Alert Level 1 | . 1 . 1 Low Security (%) 66 | 100 44 100 79 Level 1 33 | . 55 . 20 Level 2 . | . . . . Level 3 . | . . . . Level 4 . | . . . . Level 5 . | . . . . High Security . | . . . . Max Security . | . . . . Squads Dispatched 6 | . 4 . 2 Investigation 5 | . 4 . 1 Extermination . | . . . . Reinforcement 1 | . . . 1 Assault . | . . . . Garrison . | . . . . Intercept . | . . . . Searches Triggered . | . . . . Construction Impeded . | . . . . Haulers Reinforced . | . . . . Active Scanning Responses . | . . . . Cargo Convoy Interrupts . | . . . . Stealth | -11 -10 -10 -9 --------- Run | Yrd Mat Min Mat Distress Signals 9 | . 4 . 5 Communications Jammed . | . . . . Distress Signals . | . . . . Times Spotted 40 | . 15 2 23 Peak Tracking Total 11 | . 4 2 11 Tactical Retreats 1 | . . . 1 Traps | -11 -10 -10 -9 ------- Run | Yrd Mat Min Mat Traps Triggered 2 | . 1 . 1 Indirectly . | . . . . Trap Hack Attempts . | . . . . Triggered . | . . . . Disarmed . | . . . . Reprogrammed . | . . . . Reused . | . . . . Traps Extracted . | . . . . Installed . | . . . . Triggered . | . . . . Machines | -11 -10 -10 -9 ---------- Run | Yrd Mat Min Mat Machines Disabled 5 | . 1 . 4 Max in Single Turn 2 | . 1 . 2 Machines Repaired . | . . . . Machines Dismantled . | . . . . Machines Sabotaged . | . . . . Overloaded Fab Kills . | . . . . Hacking | -11 -10 -10 -9 --------- Run | Yrd Mat Min Mat Machines Accessed 12 | . 9 . 3 Terminals 10 | . 8 . 2 Fabricators . | . . . . Repair Stations 1 | . 1 . . Recycling Units . | . . . . Scanalyzers 1 | . . . 1 Garrison Access . | . . . . Total Hacks 38 | . 30 . 8 Successful 21 | . 15 . 6 Failed 17 | . 15 . 2 Catastrophic 4 | . 4 . . Database Lockouts . | . . . . Manual 34 | . 28 . 6 Terminals 34 | . 28 . 6 Fabricators . | . . . . Repair Stations 2 | . 2 . . Recycling Units . | . . . . Scanalyzers 2 | . . . 2 Garrison Access . | . . . . Terminal Hacks 6 | . 5 . 1 Branch Access Points 1 | . 1 . . Emergency Access Points 1 | . 1 . . Terminal Index 1 | . . . 1 Locate Traps 2 | . 2 . . Recall Investigation 1 | . 1 . . Fabricator Hacks . | . . . . Repair Station Hacks 2 | . 2 . . Scan Component 1 | . 1 . . Repair 1 | . 1 . . Recycling Unit Hacks . | . . . . Scanalyzer 2 | . . . 2 Insert Component 1 | . . . 1 Analyze 1 | . . . 1 Garrison Access Hacks . | . . . . Unauthorized Hacks 11 | . 8 . 3 Terminals 11 | . 8 . 3 Botnet 9 | . 7 . 2 Operators 2 | . 1 . 1 Fabricators . | . . . . Repair Stations . | . . . . Recycling Units . | . . . . Scanalyzers . | . . . . Garrison Access . | . . . . Data Cores Recovered . | . . . . Used . | . . . . Hacking Detections 10 | . 7 . 3 Full Trace Events 6 | . 5 . 1 Feedback Events . | . . . . Feedback Blocked . | . . . . Robot Schematics Acquired . | . . . . Robots Built . | . . . . Authchips . | . . . . Time . | . . . . Total Robot Build Rating . | . . . . Part Schematics Acquired 1 | . . . 1 Parts Built . | . . . . Authchips . | . . . . Time . | . . . . Total Part Build Rating . | . . . . Parts Repaired 1 | . 1 . . Time 38 | . 38 . . Parts Recycled . | . . . . Recycled Matter . | . . . . Retrieved Matter . | . . . . Retrieved Components . | . . . . Parts Scanalyzed 1 | . . . 1 Part Schematics Acquired 1 | . . . 1 Parts Damaged 1 | . . . 1 Bothacking | -11 -10 -10 -9 ------------ Run | Yrd Mat Min Mat Used RIF Installer . | . . . . Robots Hacked . | . . . . Non-combat . | . . . . Combat . | . . . . Robot Hacks Applied . | . . . . Relay Couplers Released . | . . . . Fabnet Peak Effective % . | . . . . Robots Rewired . | . . . . Allies Hacked . | . . . . Hacks Repelled . | . . . . Allies | -11 -10 -10 -9 -------- Run | Yrd Mat Min Mat Total Allies . | . . . . Largest Group . | . . . . Highest-Rated Group . | . . . . Highest-Rated Ally . | . . . . Total Orders . | . . . . Ally Attacks . | . . . . Total Damage . | . . . . Kills . | . . . . Allies Corrupted . | . . . . Allies Melted . | . . . . Intel | -11 -10 -10 -9 ------- Run | Yrd Mat Min Mat Robot Analysis Total . | . . . . Derelict Logs Recovered . | . . . . Drone Launches . | . . . . Drone Recoveries . | . . . . Exploration | -11 -10 -10 -9 ------------- Run | Yrd Mat Min Mat Turns Passed 3355 | 214 1588 352 1201 Spaces Moved 1396 | 87 669 202 438 Core 9 | 8 . . 1 Treads 1179 | . 540 202 437 Legs 208 | 79 129 . . Wheels . | . . . . Hover . | . . . . Flight . | . . . . Fastest Speed 50 | 50 120 160 160 Average Speed 199 | 114 205 160 224 Slowest Speed 450 | 120 240 160 450 Overloaded Moves . | . . . . Propulsion Burnouts . | . . . . Robots Hopped . | . . . . Cave-ins Triggered . | . . . . Exploration Rate (%) 50 | 5 92 69 34 Regions Visited 3 Branch Regions 1 Pre-discovered Areas . | . . . . Known Exits Taken 1 | . 1 . . Unknown Exits Taken 2 | 1 . 1 . Scrap Searched . | . . . . Spaces Dug . | . . . . Terrain Destroyed 122 | . 66 . 56 Melee . | . . . . Projectile . | . . . . AOE 122 | . 66 . 56 Terrain Rammed . | . . . . Walls Destroyed . | . . . . Machines Disabled . | . . . . Actions | -11 -10 -10 -9 --------- Run | Yrd Mat Min Mat Total 1779 | 165 821 218 575 Wait 193 | 49 82 4 58 Move 1393 | 86 668 201 438 Hop . | . . . . Pick Up 26 | 4 15 2 5 Fast Attach 13 | 8 4 . 1 Attach 5 | . 1 . 4 Detach 2 | 1 1 . . Swap 12 | . 5 1 6 Drop 17 | . 8 2 7 Fire 49 | 16 24 . 9 Melee 68 | . 13 8 47 Ram . | . . . . Kick 1 | 1 . . . Crush . | . . . . Escape Stasis . | . . . . Rewire . | . . . . Trap . | . . . . Miscellaneous . | . . . . Route ------- -11/Scrapyard -10/Materials (discovered 5 exits: *Mat x3 / *Min x2) -10/Mines -9/Materials (discovered 1 exit: [*Min]) History --------- Turn | Location | Event 11 | -11/Scrapyard | Discovered new exit (range 16) 215 | -11/Scrapyard | Entered Materials 309 | -10/Materials | Build established: Mutant 358 | -10/Materials | Discovered new exit (range 6) 401 | -10/Materials | Destroyed 8 combat bots 455 | -10/Materials | Discovered new exit (range 10) 689 | -10/Materials | Discovered new exit (range 16) 1289 | -10/Materials | Discovered new exit (range 11) 1432 | -10/Materials | Repaired Lgt. Nuclear Core 1465 | -10/Materials | Identified exit to Mines 1803 | -10/Materials | Entered Mines 1924 | -10/Mines | Received a Rocket Launcher from a helpful Derelict 2135 | -10/Mines | Discovered new exit (range 12) 2155 | -10/Mines | Entered Materials 2155 | -9/Materials | Evolved 2 slots: Utility x2 3239 | -9/Materials | Discovered new exit (range 12) 3349 | -9/Materials | Core integrity fell below 50% 3356 | -9/Materials | Self-destructed Last Messages --------------- 03338_ Atomic Centrifuge disabled. 03338_ Lgt. Treads destroyed. 03338_ Destroyed Lgt. Treads. 03340_ Y-45 Defender misfires. 03340_ W-16 Scout destroyed. 03340_ G-34 Mercenary destroyed. 03343_ K-01 Serf collects debris. 03344_ Deuterium Engine destroyed. 03346_ Critical hit (Burn: +37). 03346_ Lgt. Treads destroyed. 03347_ G-34 Mercenary destroyed. 03348_ K-01 Serf collects debris. 03349_ U-05 Engineer lays Concrete. 03350_ Grenade Launcher destroyed. 03351_ U-05 Engineer lays Concrete. 03352_ K-01 Serf collects debris. 03352_ U-05 Engineer lays Concrete. 03355_ The unstable cave ceiling collapses. 03355_ U-05 Engineer lays Concrete. 03356_ K-01 Serf collects debris. Map ----- +----------------------------------------------------+ | ?????????????????????????????????????????????????? | | ?????????????????????????????????????????????????? | | ?????????????????????????????????????????????????? | | ?????????????????????????????????????????????????? | | ?????????????????????????????????????????????????? | | ?????????????????????????????????????????????????? | | ?????????????????????????????????????????????????? | | ?????????????????????????????????????????????????? | | ?????????????????????????????????????????????????? | | ?????????????????????????????????????????????????? | | ????????????????????????? ??????????????????????? | | ????????????????????????" ??????????????????????? | | ????????????????????????" #?????????????????????? | | ??????????????????? ???? * ?????????????????????? | | ??????????????????? ???? %[?????????????????????? | | ???????????????????? """ = ?????????????????????? | | ????????????????????? """ ?????????????????????? | | ????????????????????? """gb#?????????????????????? | | ?????????????????????? #?????????????????????? | | ??????????????????????? #?????????????????????? | | ???????????????????????# #?????????????????????? | | ???????????????????????# #?????????????????????? | | ???????????????????????# #?????????????????????? | | ???????????????????????#Y #######???????????????? | | ???????????????????????# ##############+## | | ???????????????????????#u@ ! %= T | | ??????????#####???????# [% =u | | ?????????# ###### % """ ?? | | ???????? s% k """"???? | | ???????? < [= # # """"???? | | ???????? ###?# """"???? | | ?????????#" "## "" ##???# * """???? | | ??????????" !"! ??# """ #????# ?? | | ?????? ??????????# """ #????# | | ?????? #?????????# #????# """ """" ? | | ?? ??? #?????????# #????# """"" """" | | ?? """ ??????????# """ #????# """"" """????? | | ?? """ ??????????# """ #????# """"" ????? | | ??? ??????????# """ #????# ""?? ????? | | ??? ??????????# #????# ???? ???? | | ??? ! ??????????# #????# ????? ???? | | ???# #??????????# """ #????# ??????##????? | | ???# #??????????# """ #????#####????????????? | | ???# #??????????# """ #?????????????????????? | | ???# #??????????# [#?????????????????????? | | ???# ##?????????# #?????????????????????? | | ??## ##?????????# ##+#+###???????????????????? | | ??## ############ # #???????????????????? | | ??## # """ #???????????????????? | | ??## # """ #???????????????????? | +----------------------------------------------------+ Best States ------------- Heat Dissipation 28 Energy Generation 14 Energy Capacity 275 Matter Stores 300 Matter Capacity 300 Sight Range 16 Terrain Scan Range 16 Terrain Scan Density 10 Armor Coverage 300 Evasion (%) 55 Recoil Reduction 2 Item Schematics ----------------- Hvy. Flail | -9/Materials | Scanalyzed Robot Schematics ------------------ None Fabricated ------------ Nothing Alien Tech Used ----------------- None Achievements -------------- None Challenges ------------ None Game ------ Seed SlugLinearProtomatter Manual? 0 Play Time 00:24:29 Cumulative 29.7 hours Start 2024.06.06 @ 16:32:03 End 2024.06.06 @ 16:52:11 Sessions 1 Manual Loads 0 Difficulty Rogue Special Mode None Game No. 64 Rogue 64 Adventurer 0 Explorer 0 Win Type - Total 0 Types 0/0/0/0/0/0/0/0/0 Lore% 21 Gallery% 27 Achievement% 22 Wizard Run 0 Options --------- Layout 0 ASCII 0 Keyboard 0 Movement Mouse Keybinds 0 Fullscreen 2 Font 18/Terminus Map View 76x50 Zoom Use 0% Tactical HUD 1 Map Filters NONE Filters NONE Steam 1 RUN: 813e1a60-158f-45b1-beb7-d0301bb06100